bitfinex-derivatives/quotes_SOLF0:USTF0_20250331
["timestamp","ask_amount","ask_price","bid_price","bid_amount"]
[1743395912640,5.1121834,124.75,124.72,8.0184]
[1743395912842,20.52214373,124.77,124.72,8.0184]
[1743395913043,5.11147965,124.76,124.72,8.0184]
[1743395913243,5.11147965,124.75,124.72,8.0184]
[1743395913442,8.016,124.76,124.72,8.0184]
[1743395913643,13.10854082,124.75,124.72,8.0184]
[1743395913846,7.99688049,124.75,124.71,8.06961287]
[1743395914546,7.99688049,124.75,124.72,8.0184]
[1743395915145,290.7985,124.8,124.71,8.04749336]
[1743395915346,44.00045774,124.82,124.78,7.99688049]
[1743395915646,144.5425498,124.84,124.82,8.0121]
[1743395915647,82.44787941,124.83,124.82,8.0121]
[1743395915848,69.37207941,124.83,124.82,45.78898049]
[1743395916141,518.44151205,124.85,124.84,8.0108]
[1743395916344,410.34996616,124.85,124.84,552.00768049]
[1743395916545,410.34996616,124.85,124.84,16.00768049]
[1743395916744,230.33740531,124.93,124.9,8.007]
[1743395917048,222.34052482,124.93,124.9,29.78]
[1743395917345,222.34052482,124.93,124.9,37.82808874]
[1743395917844,222.34052482,124.93,124.9,29.83120825]
[1743395918442,222.34052482,124.93,124.91,62.0]
[1743395918845,2.0658,124.93,124.9,0.05120825]
[1743395919944,1.9096,124.96,124.91,91.84]
[1743395920241,318.44,125.02,124.91,91.84]
[1743395920448,12.45567337,124.96,124.91,62.0]
[1743395920647,42.29567337,124.98,124.93,0.05475531]
[1743395920840,50.29757337,124.98,124.9,42.29567337]
[1743395921038,50.29757337,124.98,124.94,0.05932029]
[1743395921246,42.29567337,124.98,124.94,0.05932029]
[1743395921647,12.45567337,125.0,124.94,0.05932029]
[1743395921844,12.45567337,125.0,124.93,29.86]
[1743395922049,12.45567337,125.0,124.96,0.06055183]
[1743395922440,8.0013,124.99,124.96,0.06055183]
[1743395923253,12.45567337,124.98,124.96,0.06055183]
[1743395923454,42.31567337,124.98,124.88,87.37353808]
[1743395923753,12.45567337,124.98,124.89,74.45567337]
[1743395924550,0.05570971,124.95,124.92,0.05616246]
[1743395927252,362.0,125.15,124.94,24.91134674]
[1743395927453,1.9955,125.11,124.99,12.45567337]
[1743395927645,9.9895,125.11,125.03,62.0]
[1743395927848,1.9955,125.11,125.04,30.12]
[1743395928355,1.9955,125.11,125.06,0.05867288]
[1743395928559,1.9955,125.11,125.07,30.14]
[1743395929055,12.45567337,125.1,125.06,0.05867288]
[1743395929252,7.9965,125.07,125.04,30.14]
[1743395929653,7.9965,125.07,125.06,134.00924775]
[1743395929852,19.89078742,125.1,125.06,134.00924775]
[1743395930454,19.89078742,125.1,125.07,0.05084685]
[1743395930949,19.89078742,125.1,125.06,161.59137116]
[1743395931146,19.89078742,125.1,125.05,30.37181739]
[1743395931555,19.89078742,125.08,125.05,30.37181739]
[1743395931749,50.01078742,125.08,125.05,30.37181739]
[1743395931954,7.9974,125.05,125.04,30.37181739]
[1743395933454,7.9974,125.05,125.03,116.09158563]
[1743395933849,0.05086724,125.05,125.03,116.09158563]
[1743395934246,30.15086724,125.05,125.03,116.09158563]
[1743395934447,7.998,125.04,125.03,116.09158563]
[1743395934655,7.998,125.04,125.03,30.42975795]
[1743395934853,30.15086724,125.05,124.99,62.0]
[1743395935053,8.0004,125.01,124.99,62.0]
[1743395935461,1.9597,125.03,124.99,62.0]
[1743395935760,8.0004,125.01,124.99,62.0]
[1743395935960,8.0004,125.01,125.0,0.05980565]
[1743395938656,19.89078742,125.04,125.0,0.05980565]
[1743395939261,8.0004,125.01,125.0,0.05980565]
[1743395939561,28.83315542,125.05,125.0,0.05980565]
[1743395939758,0.06057021,125.02,125.0,0.05980565]
[1743395940664,8.0004,125.01,125.0,0.05980565]
[1743395941863,1.39236201,125.09,125.0,0.05980565]
[1743395942067,2.1367,125.14,125.06,7.9967]
[1743395942272,1.9644,125.13,125.07,30.9]
[1743395942865,1.9644,125.13,125.08,7.9951]
[1743395943073,1.9644,125.13,125.09,0.05430995]
[1743395943269,1.9644,125.13,125.1,30.88]
[1743395943772,2.1367,125.14,125.1,30.88]
[1743395944169,2.1367,125.14,125.1,38.8741]
[1743395944375,2.1367,125.14,125.1,30.88]
[1743395944579,2.0289,125.17,125.1,50.77078742]
[1743395944971,2.0289,125.17,125.12,8.04554196]
[1743395945178,2.0289,125.17,125.13,30.84]
[1743395945479,19.89078742,125.24,125.14,19.89078742]
[1743395945674,4.174,125.24,125.14,19.89078742]
[1743395945871,24.06478742,125.24,125.14,19.89078742]
[1743395946081,7.9869,125.22,125.18,0.05394792]
[1743395946777,30.88,125.23,125.18,0.05394792]
[1743395946982,19.89078742,125.22,125.15,30.88]
[1743395947977,0.05962404,125.2,125.17,0.05426324]
[1743395952079,1224.94980838,125.19,125.13,4.00698093]
[1743395952280,2.161,125.18,125.13,4.00698093]
[1743395952987,2.161,125.18,125.11,287.88]
[1743395953186,0.05940324,125.17,125.14,0.0590101]
[1743395953387,0.05940324,125.17,125.09,30.72]
[1743395953582,52.79178742,125.18,125.09,30.72]
[1743395953890,117.42952302,125.17,125.09,30.72]
[1743395954386,117.42952302,125.17,125.09,38.7144]
[1743395954588,0.05287436,125.14,125.12,0.06151579]
[1743395954785,0.05287436,125.14,125.09,38.7544]
[1743395955985,117.42952302,125.13,125.08,30.72]
[1743395956483,117.42952302,125.13,125.08,92.72]
[1743395956690,125.42192302,125.13,125.08,92.72]
[1743395957192,125.42192302,125.13,125.09,0.05592099]
[1743395957388,7.993,125.12,125.07,7.9957]
[1743395957889,7.993,125.12,125.06,60.70208742]
[1743395958090,125.42202302,125.13,125.06,52.70558742]
[1743395958283,328.85332933,125.08,125.06,52.70558742]
[1743395958481,328.85332933,125.08,125.07,7.9955]
[1743395958792,328.9050343,125.08,125.06,50.64883914]
[1743395959392,328.85332933,125.1,125.06,52.69633914]
[1743395959692,328.85332933,125.1,125.08,7.995]
[1743395959989,274.25168899,125.09,125.08,7.995]
[1743395960491,274.25168899,125.09,125.08,62.0]
[1743395961995,274.25168899,125.09,125.08,69.9955]
[1743395962598,328.91477239,125.1,125.08,69.9955]
[1743395963100,328.91477239,125.1,125.09,7.9948]
[1743395963393,326.37740605,125.1,125.09,38.5948]
[1743395964391,326.37740605,125.1,125.09,30.6]
[1743395965192,0.06144306,125.1,125.09,30.6]
[1743395966404,0.06144306,125.1,125.09,38.5948]
[1743395966703,0.06144306,125.1,125.09,281.62291886]
[1743395968195,0.06144306,125.1,125.09,243.02811886]
[1743395968703,43.01827477,125.15,125.09,209.04758185]
[1743395970006,8.05047504,125.13,125.11,0.06063847]
[1743395970703,0.05777504,125.13,125.11,0.06063847]
[1743395971296,0.05777504,125.13,125.11,8.05413847]
[1743395972599,0.05777504,125.13,125.12,7.9929]
[1743395972806,0.05777504,125.13,125.11,0.06063847]
[1743395973202,15.965,125.29,125.12,30.46]
[1743395973412,12.41827477,125.26,125.17,12.41827477]
[1743395973708,22.43447477,125.3,125.24,7.9848]
[1743395973909,14.45267477,125.3,125.22,43.25827477]
[1743395974122,14.45267477,125.3,125.23,30.84]
[1743395974305,22.43467477,125.3,125.23,38.8253]
[1743395974506,22.43467477,125.3,125.25,0.05722267]
[1743395974507,0.05328007,125.28,125.25,0.05722267]
[1743395976513,0.05328007,125.28,125.25,62.05722267]
[1743395977013,8.03638007,125.28,125.25,62.05722267]
[1743395977813,8.03638007,125.28,125.25,0.05722267]
[1743395978616,0.05328007,125.28,125.21,30.74]
[1743395978912,0.05328007,125.28,125.17,377.82416689]
[1743395978913,50.56416689,125.27,125.18,30.74]
[1743395979311,7.9842,125.26,125.2,7.9876]
[1743395979508,50.56416689,125.27,125.2,7.9876]
[1743395979914,0.05257994,125.25,125.22,0.05606949]
[1743395980719,8.03757994,125.25,125.22,0.05606949]
[1743395981811,7.9854,125.24,125.18,30.74]
[1743395982010,10.0788,125.24,125.18,30.74]
[1743395982216,2.0934,125.24,125.18,30.74]
[1743395982919,0.05478533,125.22,125.2,0.05678921]
[1743395984221,8.04178533,125.22,125.2,0.05678921]
[1743395984517,0.05478533,125.22,125.2,0.05678921]
[1743395987513,8.04128533,125.22,125.2,0.05678921]
[1743395988219,0.05478533,125.22,125.2,0.05678921]
[1743395989019,8.04148533,125.22,125.2,0.05678921]
[1743395989723,7.9872,125.21,125.2,0.05678921]
[1743395990423,0.05478533,125.22,125.17,62.0]
[1743395991326,0.05478533,125.22,125.16,30.7]
[1743395991522,0.05478533,125.22,125.18,0.05050079]
[1743395991925,7.9884,125.2,125.18,0.05050079]
[1743395992126,30.66,125.19,125.09,425.16701425]
[1743395992326,30.66,125.18,125.1,30.66]
[1743395992918,32.7024,125.18,125.1,30.66]
[1743395993128,7.9915,125.15,125.1,7.9942]
[1743395993328,7.9915,125.15,125.13,0.05734101]
[1743395993329,0.05700072,125.15,125.13,0.05734101]
[1743395994234,0.05700072,125.15,125.13,62.05734101]
[1743395995933,0.05700072,125.15,125.14,7.9916]
[1743395999031,10.99906951,125.35,125.14,678.35509818]
[1743395999227,7.9844,125.26,125.22,12.40754909]
[1743395999427,7.9844,125.26,125.23,31.94]
[1743395999625,21.91246039,125.32,125.23,31.94]
[1743395999828,7.9831,125.28,125.23,31.94]
[1743396000031,7.9831,125.28,125.24,0.05475311]
[1743396000225,0.06121964,125.27,125.24,31.97475311]
[1743396000424,0.06121964,125.27,125.24,0.05475311]
[1743396000631,2.16181964,125.27,125.21,31.92]
[1743396000833,2.1006,125.27,125.21,31.92]
[1743396001537,2.1006,125.27,125.22,7.9861]
[1743396001736,0.05895584,125.25,125.23,0.05470824]
[1743396001925,0.05895584,125.25,125.24,62.0]
[1743396003034,31.91895584,125.25,125.16,19.82116039]
[1743396003229,31.86,125.25,125.16,51.70116039]
[1743396003736,51.72116039,125.32,125.2,19.82116039]
[1743396004035,7.9814,125.3,125.24,7.9846]
[1743396004237,0.05537108,125.27,125.25,0.05206286]
[1743396004537,0.05537108,125.27,125.25,8.03646286]
[1743396004933,0.05537108,125.27,125.25,0.05206286]
[1743396005139,0.05537108,125.27,125.22,7.9861]
[1743396005838,8.03907108,125.27,125.22,7.9861]
[1743396006239,8.03907108,125.27,125.23,0.05541862]
[1743396008129,7.984,125.26,125.23,0.05541862]
[1743396008633,8.03887108,125.27,125.23,0.05541862]
[1743396008834,0.05537108,125.27,125.23,0.05541862]
[1743396009344,0.05537108,125.27,125.24,7.9849]
[1743396010138,0.05537108,125.27,125.23,0.05541862]
[1743396010335,0.05537108,125.27,125.24,31.72]
[1743396010833,0.05537108,125.27,125.23,0.05541862]
[1743396011641,0.05537108,125.27,125.24,7.9849]
[1743396011840,0.05537108,125.27,125.23,0.05541862]
[1743396015243,8.03877108,125.27,125.23,8.04091862]
[1743396015748,0.05537108,125.27,125.23,0.05541862]
[1743396016142,0.05537108,125.27,125.24,7.9851]
[1743396016646,0.05537108,125.27,125.23,8.04101862]
[1743396017049,0.05537108,125.27,125.24,7.9852]
[1743396017239,0.05537108,125.27,125.23,0.05541862]
[1743396017650,0.05537108,125.27,125.24,7.9852]
[1743396017843,0.05537108,125.27,125.23,0.05541862]
[1743396018443,8.03917108,125.27,125.23,8.04101862]
[1743396018645,0.05537108,125.27,125.23,0.05541862]
[1743396019651,8.03907108,125.27,125.23,8.04131862]
[1743396021651,0.05537108,125.27,125.24,7.9851]
[1743396022452,0.05537108,125.27,125.25,7.9845]
[1743396024151,0.05537108,125.27,125.24,7.985]
[1743396024752,0.05537108,125.27,125.25,7.9845]
[1743396025451,0.05537108,125.27,125.24,7.985]
[1743396025754,8.03887108,125.27,125.24,7.985]
[1743396026151,0.05537108,125.27,125.25,7.9846]
[1743396026651,0.05537108,125.27,125.24,7.9847]
[1743396026851,0.05537108,125.27,125.23,0.05541862]
[1743396027355,0.05537108,125.27,125.25,7.9846]
[1743396027548,0.05537108,125.27,125.23,0.05541862]
[1743396027748,8.03907108,125.27,125.23,0.05541862]
[1743396027948,8.03907108,125.27,125.23,8.04091862]
[1743396028149,8.03907108,125.27,125.23,0.05541862]
[1743396028349,0.05537108,125.27,125.23,0.05541862]
[1743396028551,0.05537108,125.27,125.23,12.44562325]
[1743396029249,0.05537108,125.27,125.25,7.9841]
[1743396029446,0.00066284,125.27,125.25,43.65020463]
[1743396029643,2.1403,125.33,125.25,43.65020463]
[1743396029843,2.1403,125.33,125.27,12.39020463]
[1743396030151,12.39020463,125.36,125.28,31.26]
[1743396030357,14.43090463,125.36,125.29,7.9815]
[1743396030551,45.67090463,125.36,125.28,31.26]
[1743396030849,0.05760849,125.34,125.31,0.05455593]
[1743396031256,23.38927414,125.42,125.33,12.39020463]
[1743396031553,2.1627,125.39,125.32,31.3]
[1743396032148,12.39020463,125.38,125.32,31.3]
[1743396032354,0.06083811,125.37,125.34,0.05087296]
[1743396032849,7.9781,125.36,125.34,0.05087296]
[1743396033554,7.9781,125.36,125.29,12.39020463]
[1743396033555,12.39020463,125.36,125.29,31.3]
[1743396033762,12.39020463,125.34,125.27,318.62]
[1743396033955,7.9813,125.31,125.27,318.62]
[1743396034355,7.9813,125.31,125.27,287.32]
[1743396034554,7.9813,125.31,125.27,318.6]
[1743396034754,0.05353601,125.3,125.28,0.05775561]
[1743396035052,8.03503601,125.3,125.28,0.05775561]
[1743396036656,7.9821,125.29,125.28,0.05775561]
[1743396037252,0.05353601,125.3,125.28,0.05775561]
[1743396037861,7.9821,125.29,125.28,0.05775561]
[1743396038048,0.05353601,125.3,125.28,0.05775561]
[1743396038762,8.03533601,125.3,125.28,0.05775561]
[1743396039058,0.05353601,125.3,125.28,0.05775561]
[1743396039754,8.03503601,125.3,125.28,0.05775561]
[1743396040561,7.9821,125.29,125.28,0.05775561]
[1743396042160,0.05353601,125.3,125.28,0.05775561]
[1743396042462,0.05353601,125.3,125.29,31.08]
[1743396043053,0.05353601,125.3,125.29,43.47020463]
[1743396044563,0.05353601,125.3,125.29,51.45230463]
[1743396047167,14.35040463,125.38,125.29,39.06]
[1743396047365,14.35040463,125.38,125.3,12.39020463]
[1743396047761,7.9779,125.36,125.32,7.98]
[1743396047962,7.9779,125.36,125.33,30.98]
[1743396048163,0.05199528,125.35,125.33,31.03797317]
[1743396048562,0.05199528,125.35,125.33,0.05797317]
[1743396048767,7.9789,125.34,125.33,0.05797317]
[1743396049264,7.9805,125.32,125.29,30.96]
[1743396049766,12.39020463,125.36,125.29,30.96]
[1743396050565,0.05168629,125.34,125.31,0.06037497]
[1743396052464,43.32189092,125.34,125.31,0.06037497]
[1743396052668,2.1119,125.33,125.27,62.0]
[1743396052861,7.9818,125.3,125.27,62.0]
[1743396053566,7.9811,125.31,125.27,69.9833]
[1743396053766,7.9811,125.31,125.27,70.04322307]
[1743396053767,0.05106776,125.3,125.27,70.04322307]
[1743396053967,0.05106776,125.3,125.27,62.05992307]
[1743396056270,8.03286776,125.3,125.27,62.05992307]
[1743396057570,7.9826,125.29,125.27,62.05992307]
[1743396058069,7.9821,125.29,125.27,62.05992307]
[1743396058267,0.05106776,125.3,125.27,62.05992307]
[1743396059365,0.05106776,125.3,125.27,70.04312307]
[1743396059565,0.05106776,125.3,125.27,62.05992307]
[1743396060173,8.03256776,125.3,125.27,70.04322307]
[1743396061172,0.05106776,125.3,125.28,30.72]
[1743396061774,0.05106776,125.3,125.29,20.37230463]
[1743396061963,16.44340463,125.38,125.29,12.39020463]
[1743396062271,7.9781,125.36,125.31,12.39020463]
[1743396062471,16.44340463,125.38,125.31,43.13020463]
[1743396062672,16.44340463,125.38,125.32,7.9798]
[1743396062673,7.9781,125.36,125.32,7.9798]
[1743396063173,0.05442102,125.35,125.33,0.05466421]
[1743396063471,8.03302102,125.35,125.33,0.05466421]
[1743396065174,0.05442102,125.35,125.33,8.03416421]
[1743396065874,0.05442102,125.35,125.33,0.05466421]
[1743396067976,0.05442102,125.35,125.27,62.0]
[1743396067977,0.05442102,125.35,125.28,30.58]
[1743396068172,42.97020463,125.36,125.28,30.58]
[1743396068372,2.082,125.38,125.32,12.39020463]
[1743396068574,2.082,125.38,125.33,30.7]
[1743396068774,2.082,125.38,125.36,7.9772]
[1743396069074,0.05467681,125.38,125.36,0.05178821]
[1743396070878,0.05467681,125.38,125.37,7.977]
[1743396072577,0.05467681,125.38,125.37,69.977]
[1743396072781,0.05467681,125.38,125.36,0.05178821]
[1743396073776,0.05467681,125.38,125.36,8.02928821]
[1743396074984,8.03107681,125.38,125.36,0.05178821]
[1743396075185,0.05467681,125.38,125.3,299.57020463]
[1743396075380,1.9919,125.38,125.32,30.54]
[1743396075581,7.9783,125.35,125.32,7.9799]
[1743396075884,7.9783,125.35,125.32,69.9799]
[1743396076183,12.39020463,125.35,125.28,30.54]
[1743396076482,12.44616239,125.35,125.32,0.05244039]
[1743396076684,12.39020463,125.33,125.27,7.983]
[1743396077087,7.9815,125.3,125.26,7.9838]
[1743396077284,2.0202,125.32,125.25,42.95020463]
[1743396077788,0.05938522,125.3,125.27,8.04267372]
[1743396078486,8.04088522,125.3,125.27,8.04267372]
[1743396078785,8.04088522,125.3,125.27,0.05967372]
[1743396079185,7.9821,125.29,125.27,0.05967372]
[1743396079385,0.05938522,125.3,125.27,0.05967372]
[1743396079780,7.9827,125.28,125.27,0.05967372]
[1743396081077,7.9837,125.27,125.23,7.9855]
[1743396081276,7.9837,125.27,125.22,30.48]
[1743396081686,7.9837,125.27,125.23,7.9855]
[1743396082088,7.9837,125.27,125.24,69.9851]
[1743396082388,0.05788023,125.26,125.24,70.04010619]
[1743396083788,0.05788023,125.26,125.24,62.05500619]
[1743396084791,0.05788023,125.26,125.24,70.03980619]
[1743396085187,0.05788023,125.26,125.24,62.05500619]
[1743396086785,8.04188023,125.26,125.24,62.05500619]
[1743396087596,0.05788023,125.26,125.24,62.05500619]
[1743396088095,0.05788023,125.26,125.24,0.05500619]
[1743396088493,7.9846,125.25,125.24,0.05500619]
[1743396089192,7.9858,125.24,125.2,7.9876]
[1743396090197,0.05377496,125.23,125.21,0.05713836]
[1743396090595,8.03977496,125.23,125.21,0.05713836]
[1743396090895,0.05377496,125.23,125.21,0.05713836]
[1743396091095,0.05377496,125.23,125.21,62.05713836]
[1743396091293,8.03987496,125.23,125.21,62.05713836]
[1743396091692,0.05377496,125.23,125.21,62.05713836]
[1743396093800,42.66397959,125.23,125.15,12.39020463]
[1743396094002,42.61020463,125.23,125.15,30.22]
[1743396094297,2.0979,125.22,125.15,30.22]
[1743396094800,7.9878,125.21,125.17,7.9895]
[1743396095099,0.06042801,125.2,125.17,7.9895]
[1743396096699,0.06042801,125.2,125.17,69.9895]
[1743396098603,0.06042801,125.2,125.18,7.9889]
[1743396098899,0.06042801,125.2,125.17,74.39020463]
[1743396099105,4.0737,125.26,125.19,12.39020463]
[1743396099302,10.0173,125.26,125.19,12.39020463]
[1743396099598,2.0328,125.26,125.19,12.39020463]
[1743396099804,12.39020463,125.27,125.19,12.39020463]
[1743396100304,0.05741431,125.24,125.22,0.06118743]
[1743396101003,7.9859,125.23,125.22,0.06118743]
[1743396104206,50.51610463,125.23,125.22,0.06118743]
[1743396104394,52.56070463,125.23,125.22,0.06118743]
[1743396106298,44.57480463,125.23,125.17,62.0]
[1743396106904,7.988,125.2,125.17,69.9894]
[1743396107402,8.04654527,125.2,125.17,69.9894]
[1743396108401,0.05854527,125.2,125.13,402.61540463]
[1743396108607,0.05854527,125.2,125.13,44.61540463]
[1743396109206,7.989,125.19,125.15,7.9909]
[1743396109604,0.05854527,125.2,125.15,7.9909]
[1743396109808,7.9894,125.18,125.15,7.9909]
[1743396111314,7.9897,125.17,125.14,7.9914]
[1743396111513,7.9897,125.17,125.15,62.0]
[1743396111813,0.05306367,125.17,125.15,62.0]
[1743396112011,8.04286367,125.17,125.15,62.0]
[1743396112616,0.05306367,125.17,125.15,69.991]
[1743396113109,2.0446,125.23,125.16,30.02]
[1743396114417,0.05850621,125.21,125.19,7.9879]
[1743396120712,0.05850621,125.21,125.18,0.05837257]
[1743396120913,0.05850621,125.21,125.19,42.29020463]
[1743396121113,14.50070463,125.29,125.19,44.43440463]
[1743396121314,7.9838,125.27,125.23,7.9853]
[1743396121518,7.9838,125.27,125.23,37.9653]
[1743396122120,7.9838,125.27,125.24,7.9852]
[1743396122320,0.05549287,125.26,125.24,8.04323141]
[1743396122824,0.05549287,125.26,125.24,0.05803141]
[1743396123723,7.9846,125.25,125.24,0.05803141]
[1743396125724,0.05549287,125.26,125.24,0.05803141]
[1743396127319,0.05549287,125.26,125.24,8.04293141]
[1743396127818,0.05549287,125.26,125.24,70.04293141]
[1743396131023,0.05549287,125.26,125.25,7.9846]
[1743396135523,0.05549287,125.26,125.24,99.80303141]
[1743396136125,0.05549287,125.26,125.24,37.80303141]
[1743396137321,8.03949287,125.26,125.24,37.80303141]
[1743396137527,8.03949287,125.26,125.24,29.81803141]
[1743396137722,8.03949287,125.26,125.24,0.05803141]
[1743396138530,7.9846,125.25,125.24,0.05803141]
[1743396139028,0.05549287,125.26,125.24,0.05803141]
[1743396139429,8.03979287,125.26,125.24,0.05803141]
[1743396140230,7.9846,125.25,125.24,0.05803141]
[1743396141024,0.05549287,125.26,125.24,0.05803141]
[1743396142429,0.05549287,125.26,125.24,29.81803141]
[1743396142625,0.05549287,125.26,125.24,37.80293141]
[1743396143129,0.05549287,125.26,125.24,29.81803141]
[1743396143328,0.05549287,125.26,125.25,7.9846]
[1743396143731,0.05549287,125.26,125.25,15.91064436]
[1743396149632,15.90754436,125.3,125.25,15.91064436]
[1743396149633,7.9805,125.32,125.29,7.9819]
[1743396150929,7.92604436,125.31,125.29,8.03237989]
[1743396151235,15.90694436,125.31,125.29,0.05047989]
[1743396155238,7.9814,125.3,125.29,0.05047989]
[1743396155536,15.90744436,125.3,125.29,0.05047989]
[1743396157139,7.9823,125.29,125.26,37.7238]
[1743396157332,7.92604436,125.28,125.26,29.74]
[1743396157635,7.92604436,125.28,125.24,29.74]
[1743396157837,7.9833,125.27,125.24,29.74]
[1743396158037,7.9833,125.27,125.24,37.7248]
[1743396158226,8.03398371,125.27,125.24,37.77747326]
[1743396158736,0.05068371,125.27,125.24,37.77747326]
[1743396159236,0.05068371,125.27,125.24,37.71871762]
[1743396160132,0.05068371,125.27,125.25,7.9843]
[1743396160337,0.05068371,125.27,125.24,29.79267326]
[1743396161029,8.03408371,125.27,125.24,37.77727326]
[1743396161937,0.05068371,125.27,125.25,7.9845]
[1743396163638,8.03408371,125.27,125.24,37.77777326]
[1743396164238,0.05068371,125.27,125.25,7.9846]
[1743396164846,8.03418371,125.27,125.24,37.77767326]
[1743396165343,0.05068371,125.27,125.24,29.79267326]
[1743396165547,7.9843,125.26,125.24,29.79267326]
[1743396165840,7.9843,125.26,125.24,0.05267326]
[1743396166037,7.97672807,125.27,125.24,0.05267326]
[1743396166243,0.05068371,125.27,125.24,0.05267326]
[1743396167842,0.05068371,125.27,125.25,7.9842]
[1743396168042,0.05068371,125.27,125.24,0.05267326]
[1743396168439,0.05068371,125.27,125.25,37.724]
[1743396168637,0.05068371,125.27,125.25,29.74]
[1743396168943,0.05068371,125.27,125.26,7.984]
[1743396169444,0.05068371,125.27,125.25,29.74]
[1743396170041,8.03408371,125.27,125.25,29.74]
[1743396172746,0.05068371,125.27,125.25,29.74]
[1743396173352,0.05068371,125.27,125.25,37.7246]
[1743396173539,0.05068371,125.27,125.25,29.74]
[1743396173946,0.05068371,125.27,125.26,7.984]
[1743396184254,0.05068371,125.27,125.25,29.74]
[1743396184456,0.05068371,125.27,125.24,0.05267326]
[1743396184754,8.03428371,125.27,125.24,8.03757326]
[1743396185554,0.05068371,125.27,125.25,7.9844]
[1743396188850,0.05068371,125.27,125.25,7.9846]
[1743396189054,0.05068371,125.27,125.24,7.97871762]
[1743396190351,0.05068371,125.27,125.24,0.05267326]
[1743396190547,0.05068371,125.27,125.25,7.9842]
[1743396190954,0.05068371,125.27,125.24,0.05267326]
[1743396191151,0.05068371,125.27,125.25,29.74]
[1743396192056,7.97672807,125.27,125.24,8.03767326]
[1743396192558,7.97672807,125.27,125.25,7.9845]
[1743396192859,7.97672807,125.27,125.24,0.05267326]
[1743396193557,7.97672807,125.27,125.24,8.03747326]
[1743396194954,15.96012807,125.27,125.24,8.03747326]
[1743396201361,7.97672807,125.27,125.25,7.9846]
[1743396202260,0.05068371,125.27,125.25,7.9846]
[1743396202662,8.03408371,125.27,125.24,8.03757326]
[1743396202962,15.96012807,125.27,125.24,8.03757326]
[1743396205362,7.92604436,125.25,125.24,0.05267326]
[1743396205759,15.91064436,125.25,125.24,0.05267326]
[1743396206263,7.92604436,125.25,125.24,0.05267326]
[1743396207559,7.97672807,125.27,125.24,0.05267326]
[1743396207962,7.97672807,125.27,125.25,7.9846]
[1743396208761,7.97672807,125.27,125.24,8.03777326]
[1743396208967,7.92604436,125.26,125.24,8.03777326]
[1743396209972,7.92604436,125.25,125.24,0.05267326]
[1743396210468,15.91064436,125.25,125.24,0.05267326]
[1743396210870,7.92604436,125.25,125.24,0.05267326]
[1743396216975,15.91064436,125.25,125.24,0.05267326]
[1743396219080,7.9855,125.24,125.21,37.7268]
[1743396219276,7.92604436,125.23,125.14,359.38958213]
[1743396219479,7.92604436,125.19,125.17,7.9894]
[1743396220286,7.97931163,125.19,125.17,0.05740444]
[1743396220487,7.92604436,125.18,125.17,0.05740444]
[1743396221982,7.92604436,125.18,125.17,70.04710444]
[1743396222384,7.97931163,125.19,125.18,7.9891]
[1743396222585,0.05326727,125.19,125.18,7.9891]
[1743396222886,0.05326727,125.19,125.18,37.7291]
[1743396223390,7.97931163,125.19,125.17,62.05740444]
[1743396223589,7.92604436,125.18,125.17,62.05740444]
[1743396225684,0.05326727,125.19,125.17,62.05740444]
[1743396228590,8.04176727,125.19,125.17,62.05740444]
[1743396229386,15.96781163,125.19,125.17,62.05740444]
[1743396229595,7.9891,125.18,125.17,62.05740444]
[1743396229899,15.91514436,125.18,125.17,62.05740444]
[1743396231700,15.91514436,125.18,125.17,0.05740444]
[1743396235504,7.92604436,125.18,125.17,0.05740444]
[1743396236303,15.96791163,125.19,125.17,0.05740444]
[1743396238007,7.9891,125.18,125.17,0.05740444]
[1743396239505,15.96801163,125.19,125.17,62.05740444]
[1743396239708,7.92604436,125.18,125.17,62.05740444]
[1743396239908,7.92604436,125.18,125.17,0.05740444]
[1743396241912,7.97931163,125.19,125.17,0.05740444]
[1743396242108,0.05326727,125.19,125.17,0.05740444]
[1743396243109,0.05326727,125.19,125.18,62.0]
[1743396245811,7.97931163,125.19,125.17,0.05740444]
[1743396246006,7.92604436,125.18,125.17,0.05740444]
[1743396246909,15.91514436,125.18,125.17,0.05740444]
[1743396248704,7.9909,125.16,125.14,29.76]
[1743396248907,7.92604436,125.15,125.14,62.0]
[1743396252609,0.06141752,125.16,125.14,62.0]
[1743396252814,0.06141752,125.16,125.14,91.76]
[1743396253015,0.06141752,125.16,125.15,7.991]
[1743396266227,0.06141752,125.16,125.15,15.91704436]